lending/lending_fUSD_20250719
["ID","MTS","AMOUNT","RATE_DAILY","PERIOD"]
[373168254,1752888704857,-480.0,0.00019945,2]
[373168255,1752888704867,-828.8,0.00019945,2]
[373168256,1752888704876,-480.0,0.00019945,2]
[373168257,1752888704886,-564.95,0.00019945,2]
[373168258,1752888704896,-825.18,0.00019945,2]
[373168259,1752888704905,-1303.91,0.00019945,2]
[373168260,1752888704915,-1096.8,0.00019945,2]
[373168261,1752888704926,-566.27,0.00019945,2]
[373168262,1752888704939,-494.97,0.00019945,2]
[373168263,1752888704949,-1813.24,0.00019945,2]
[373168264,1752888704958,-480.0,0.00019945,2]
[373168265,1752888704971,-1571.61,0.00019945,2]
[373168266,1752888704981,-480.0,0.00019945,2]
[373168267,1752888704992,-5046.27,0.00019945,2]
[373168268,1752888705001,-962.21,0.00019945,2]
[373168269,1752888705011,-5415.282094,0.00019945,2]
[373168270,1752888705020,-868.4,0.00019945,2]
[373168271,1752888705035,-520.74,0.00019945,2]
[373168272,1752888705056,-2145.47,0.00019945,2]
[373168273,1752888705066,-480.0,0.00019945,2]
[373168274,1752888705076,-2324.63,0.00019945,2]
[373168275,1752888705085,-480.0,0.00019945,2]
[373168276,1752888705095,-680.56,0.00019945,2]
[373168277,1752888705105,-1859.22,0.00019945,2]
[373168278,1752888705115,-977.92,0.00019945,2]
[373168279,1752888705133,-2000.63,0.00019945,2]
[373168280,1752888705154,-698.05,0.00019945,2]
[373168281,1752888705170,-566.02,0.00019945,2]
[373168282,1752888705180,-1464.48,0.00019945,2]
[373168283,1752888705190,-480.0,0.00019945,2]
[373168284,1752888705199,-1622.47,0.00019945,2]
[373168285,1752888705210,-1223.86,0.00019945,2]
[373168286,1752888705220,-4391.98,0.00019945,2]
[373168287,1752888705229,-526.96,0.00019945,2]
[373168288,1752888705240,-532.95,0.00019945,2]
[373168289,1752888705252,-962.59,0.00019945,2]
[373168290,1752888705262,-1497.68,0.00019945,2]
[373168291,1752888705272,-1945.01,0.00019945,2]
[373168292,1752888705282,-3188.33,0.00019945,2]
[373168293,1752888705292,-1016.89,0.00019945,2]
[373168294,1752888705303,-817.83,0.00019945,2]
[373168295,1752888705314,-8208.97,0.00019945,2]
[373168296,1752888705327,-878.55,0.00019945,2]
[373168297,1752888705337,-1589.38,0.00019945,2]
[373168298,1752888705348,-2919.23,0.00019945,2]
[373168299,1752888705358,-480.0,0.00019945,2]
[373168300,1752888705367,-800.44,0.00019945,2]
[373168301,1752888705378,-2236.36,0.00019945,2]
[373168302,1752888705388,-3984.11,0.00019945,2]
[373168303,1752888705398,-480.0,0.00019945,2]
[373168304,1752888705408,-480.0,0.00019945,2]
[373168305,1752888705419,-1183.06,0.00019945,2]
[373168306,1752888705429,-480.0,0.00019945,2]
[373168307,1752888705439,-725.36,0.00019945,2]
[373168308,1752888705449,-2173.08,0.00019945,2]
[373168309,1752888705553,-2117.64,0.00019945,2]
[373168310,1752888705562,-2731.47,0.00019945,2]
[373168311,1752888705571,-480.0,0.00019945,2]
[373168312,1752888705581,-1978.38,0.00019945,2]
[373168313,1752888705590,-531.72,0.00019945,2]
[373168314,1752888705599,-555.35,0.00019945,2]
[373168315,1752888705609,-480.0,0.00019945,2]
[373168316,1752888705619,-2481.37,0.00019945,2]
[373168317,1752888705629,-1343.88,0.00019945,2]
[373168318,1752888705638,-511.66,0.00019945,2]
[373168319,1752888705647,-728.91,0.00019945,2]
[373168320,1752888705657,-480.0,0.00019945,2]
[373168321,1752888705666,-480.0,0.00019945,2]
[373168322,1752888705676,-480.0,0.00019945,2]
[373168323,1752888705685,-560.64,0.00019945,2]
[373168324,1752888705695,-585.12,0.00019945,2]
[373168325,1752888705704,-508.37,0.00019945,2]
[373168326,1752888705713,-3388.13,0.00019945,2]
[373168327,1752888705723,-1149.78,0.00019945,2]
[373168328,1752888705732,-891.26,0.00019945,2]
[373168329,1752888705741,-2906.59,0.00019945,2]
[373168330,1752888705751,-1185.44,0.00019945,2]
[373168331,1752888705761,-480.0,0.00019945,2]
[373168332,1752888705771,-2035.15,0.00019945,2]
[373168333,1752888705782,-748.68,0.00019945,2]
[373168334,1752888705792,-998.17,0.00019945,2]
[373168335,1752888705801,-1441.68,0.00019945,2]
[373168336,1752888705813,-1381.67,0.00019945,2]
[373168337,1752888705822,-994.6,0.00019945,2]
[373168338,1752888705831,-523.26,0.00019945,2]
[373168339,1752888705841,-480.0,0.00019945,2]
[373168340,1752888705851,-480.0,0.00019945,2]
[373168341,1752888705861,-480.0,0.00019945,2]
[373168342,1752888705870,-615.01,0.00019945,2]
[373168343,1752888705880,-2381.44,0.00019945,2]
[373168344,1752888705890,-480.0,0.00019945,2]
[373168345,1752888705900,-6547.29,0.00019945,2]
[373168346,1752888705910,-2219.69,0.00019945,2]
[373168347,1752888705919,-574.05,0.00019945,2]
[373168348,1752888705930,-781.22,0.00019945,2]
[373168349,1752888705940,-480.0,0.00019945,2]
[373168350,1752888705949,-1256.0,0.00019945,2]
[373168351,1752888705959,-5876.53,0.00019945,2]
[373168352,1752888705968,-34456.48,0.00019945,2]
[373168353,1752888705978,-1885.62,0.00019945,2]
[373168354,1752888705987,-480.0,0.00019945,2]
[373168355,1752888705996,-756.65,0.00019945,2]
[373168356,1752888706006,-779.84,0.00019945,2]
[373168357,1752888706015,-1843.88,0.00019945,2]
[373168358,1752888706025,-1063.27,0.00019945,2]
[373168359,1752888706034,-902.36,0.00019945,2]
[373168360,1752888706044,-879.53,0.00019945,2]
[373168361,1752888706053,-1098.83,0.00019945,2]
[373168362,1752888706063,-3926.79,0.00019945,2]
[373168363,1752888706072,-531.39,0.00019945,2]
[373168364,1752888706081,-1334.35,0.00019945,2]
[373168365,1752888706090,-4173.98,0.00019945,2]
[373168366,1752888706103,-1112.34,0.00019945,2]
[373168367,1752888706113,-1019.75,0.00019945,2]
[373168368,1752888706122,-531.52,0.00019945,2]
[373168369,1752888706131,-878.37,0.00019945,2]
[373168370,1752888706140,-536.67,0.00019945,2]
[373168371,1752888706150,-4040.09,0.00019945,2]
[373168372,1752888706166,-1009.72,0.00019945,2]
[373168373,1752888706178,-3332.41,0.00019945,2]
[373168374,1752888706187,-1164.19,0.00019945,2]
[373168375,1752888706196,-1912.01,0.00019945,2]
[373168376,1752888706206,-1204.49,0.00019945,2]
[373168377,1752888706215,-480.0,0.00019945,2]
[373168378,1752888706226,-480.0,0.00019945,2]
[373168379,1752888706236,-2333.35,0.00019945,2]
[373168380,1752888706246,-480.0,0.00019945,2]
[373168381,1752888706257,-480.0,0.00019945,2]
[373168382,1752888706267,-480.0,0.00019945,2]
[373168383,1752888706277,-480.0,0.00019945,2]
[373168384,1752888706287,-642.55,0.00019945,2]
[373168385,1752888706297,-645.39,0.00019945,2]
[373168386,1752888706306,-480.0,0.00019945,2]
[373168387,1752888706314,-480.0,0.00019945,2]
[373168388,1752888706323,-480.0,0.00019945,2]
[373168389,1752888706332,-1344.15,0.00019945,2]
[373168390,1752888706341,-1675.21,0.00019945,2]
[373168391,1752888706350,-1024.03,0.00019945,2]
[373168392,1752888706359,-656.42,0.00019945,2]
[373168393,1752888706369,-2380.94,0.00019945,2]
[373168394,1752888706378,-528.63597342,0.00019945,2]
[373168395,1752888706387,-565.56,0.00019945,2]
[373168396,1752888706395,-1145.56,0.00019945,2]
[373168397,1752888706403,-2595.14,0.00019945,2]
[373168398,1752888706411,-480.0,0.00019945,2]
[373168399,1752888706422,-480.0,0.00019945,2]
[373168400,1752888706431,-6879.99,0.00019945,2]
[373168401,1752888706440,-904.05,0.00019945,2]
[373168402,1752888706449,-1167.24,0.00019945,2]
[373168403,1752888706459,-2324.72,0.00019945,2]
[373168404,1752888706469,-657.5,0.00019945,2]
[373168405,1752888706479,-480.0,0.00019945,2]
[373168406,1752888706490,-480.0,0.00019945,2]
[373168407,1752888706499,-2058.15,0.00019945,2]
[373168408,1752888706508,-2293.05,0.00019945,2]
[373168409,1752888706518,-1846.36,0.00019945,2]
[373168410,1752888706528,-480.0,0.00019945,2]
[373168411,1752888706537,-480.0,0.00019945,2]
[373168412,1752888706546,-480.0,0.00019945,2]
[373168413,1752888706556,-784.99,0.00019945,2]
[373168414,1752888706565,-480.0,0.00019945,2]
[373168415,1752888706575,-1787.76,0.00019945,2]
[373168416,1752888706584,-694.6,0.00019945,2]
[373168417,1752888706594,-2668.26,0.00019945,2]
[373168418,1752888706603,-1118.66,0.00019945,2]
[373168419,1752888706612,-3471.23,0.00019945,2]
[373168420,1752888706622,-480.0,0.00019945,2]
[373168421,1752888706632,-745.51,0.00019945,2]
[373168422,1752888706641,-421.67894026,0.00019945,2]
[373168423,1752888706650,-6088.28,0.00019945,2]
[373168424,1752888706660,-480.0,0.00019945,2]
[373168425,1752888706669,-1379.76,0.00019945,2]
[373168426,1752888706681,-2501.63,0.00019945,2]
[373168427,1752888706691,-12113.23692591,0.00019985,2]
[373168428,1752888706700,-264.36179991,0.00019989,2]
[373168429,1752888706709,-500.0,0.00019989,2]
[373168430,1752888706719,-500.0,0.00019989,2]
[373168431,1752888706728,-500.0,0.00019989,2]
[373168432,1752888706738,-251.06229409,0.00019989,2]
[373168433,1752888706747,-150.0,0.00019989,2]
[373168434,1752888706756,-500.0,0.00019989,2]
[373168435,1752888706766,-150.0,0.00019989,2]
[373168436,1752888706775,-500.0,0.00019989,2]
[373168437,1752888706785,-500.0,0.00019989,2]
[373168438,1752888706796,-822.0,0.00019989,2]
[373168439,1752888706805,-500.0,0.00019989,2]
[373168440,1752888706815,-3307.0,0.00019989,2]
[373168441,1752888706824,-186.0,0.00019989,2]
[373168442,1752888706833,-963.0,0.00019989,2]
[373168443,1752888706842,-150.0,0.00019989,2]
[373168444,1752888706852,-500.0,0.00019989,2]
[373168445,1752888706861,-200.0,0.00019989,2]
[373168446,1752888706871,-150.0,0.00019989,2]
[373168447,1752888706880,-500.0,0.00019989,2]
[373168448,1752888706890,-150.0,0.00019989,2]
[373168449,1752888706899,-500.0,0.00019989,2]
[373168450,1752888706909,-500.0,0.00019989,2]
[373168451,1752888706918,-2785.0,0.0002,2]
[373168452,1752888706930,-541.29498373,0.0002,2]
[373168453,1752888706939,-482.16830694,0.0002,2]
[373168454,1752888706948,-3684.65942702,0.0002,2]
[373168455,1752888706957,-2794.76742808,0.0002,2]
[373168456,1752888706966,-34260.21420885,0.0002,2]
[373168457,1752888706976,-2217.86129777,0.0002,2]
[373168458,1752888706985,-38175.72663718,0.0002,4]
[373168459,1752888706994,-212.13,0.0002,7]
[373168460,1752888707003,-160.16374947,0.0002,5]
[373168461,1752888707012,-1010.348464,0.0002,2]
[373168462,1752888707022,-4000.0,0.0002,4]
[373168463,1752888707031,-150.0,0.00020038,2]
[373168464,1752888707040,-150.0,0.0002005,2]
[373168465,1752888707049,-480.0,0.00020054,2]
[373168466,1752888707059,-480.0,0.00020054,2]
[373168467,1752888707068,-480.0,0.00020054,2]
[373168468,1752888707077,-380.0,0.00020054,2]
[373168469,1752888707087,-227.30463995,0.00020054,2]
[373168470,1752888707098,-480.0,0.00020054,2]
[373168471,1752888707107,-480.0,0.00020054,2]
[373168472,1752888707117,-480.0,0.00020054,2]
[373168473,1752888707126,-480.0,0.00020054,2]
[373168474,1752888707136,-255.81200666,0.00020054,2]
[373168475,1752888707145,-480.0,0.00020054,2]
[373168476,1752888707157,-526.77,0.00020054,2]
[373168477,1752888707169,-480.0,0.00020054,2]
[373168478,1752888707179,-480.0,0.00020054,2]
[373168479,1752888707188,-522.6,0.00020054,2]
[373168480,1752888707198,-480.0,0.00020054,2]
[373168481,1752888707208,-440.0,0.00020054,2]
[373168482,1752888707219,-531.64,0.00020054,2]
[373168483,1752888707229,-480.0,0.00020054,2]
[373168484,1752888707240,-480.0,0.00020054,2]
[373168485,1752888707250,-480.0,0.00020054,2]
[373168486,1752888707259,-480.0,0.00020054,2]
[373168487,1752888707268,-480.0,0.00020054,2]
[373168488,1752888707278,-420.0,0.00020054,2]
[373168489,1752888707290,-480.0,0.00020054,2]
[373168490,1752888707300,-506.35,0.00020054,2]
[373168491,1752888707309,-480.0,0.00020054,2]
[373168492,1752888707319,-480.0,0.00020054,2]
[373168493,1752888707328,-792.99,0.00020054,2]
[373168494,1752888707337,-480.0,0.00020054,2]
[373168495,1752888707346,-561.15653493,0.00020054,2]
[373168496,1752888707355,-480.0,0.00020054,2]
[373168497,1752888707365,-480.0,0.00020054,2]
[373168498,1752888707374,-559.4,0.00020054,2]
[373168499,1752888707384,-480.0,0.00020054,2]
[373168500,1752888707393,-659.27,0.00020054,2]
[373168501,1752888707402,-879.89,0.00020054,2]
[373168502,1752888707411,-480.0,0.00020054,2]
[373168503,1752888707422,-480.0,0.00020054,2]
[373168504,1752888707431,-480.0,0.00020054,2]
[373168505,1752888707440,-480.0,0.00020054,2]
[373168506,1752888707449,-480.0,0.00020054,2]
[373168507,1752888707459,-480.0,0.00020054,2]
[373168508,1752888707468,-480.0,0.00020054,2]
[373168509,1752888707477,-480.0,0.00020054,2]
[373168510,1752888707487,-849.49,0.00020054,2]
[373168511,1752888707496,-584.83064791,0.00020054,2]
[373168512,1752888707505,-480.0,0.00020054,2]
[373168513,1752888707514,-1260.04,0.00020054,2]
[373168514,1752888707523,-480.0,0.00020054,2]
[373168515,1752888707532,-480.0,0.00020054,2]
[373168516,1752888707541,-480.0,0.00020054,2]
[373168517,1752888707551,-480.0,0.00020054,2]
[373168518,1752888707560,-480.0,0.00020054,2]
[373168519,1752888707569,-524.26,0.00020054,2]
[373168520,1752888707579,-664.17,0.00020054,2]
[373168521,1752888707588,-914.42,0.00020054,2]
[373168522,1752888707597,-480.0,0.00020054,2]
[373168523,1752888707606,-655.69,0.00020054,2]
[373168524,1752888707615,-480.0,0.00020054,2]
[373168525,1752888707624,-644.27,0.00020054,2]
[373168526,1752888707633,-840.85,0.00020054,2]
[373168527,1752888707643,-480.0,0.00020054,2]
[373168528,1752888707652,-238.20595697,0.00020054,2]
[373168529,1752888707661,-617.21,0.00020054,2]
[373168530,1752888707671,-460.0,0.00020054,2]
[373168531,1752888707680,-611.79,0.00020054,2]
[373168532,1752888707689,-480.0,0.00020054,2]
[373168533,1752888707698,-480.0,0.00020054,2]
[373168534,1752888707710,-631.4,0.00020054,2]
[373168535,1752888707720,-480.0,0.00020054,2]
[373168536,1752888707729,-667.12,0.00020054,2]
[373168537,1752888707739,-480.0,0.00020054,2]
[373168538,1752888707752,-998.16,0.00020054,2]
[373168539,1752888707764,-480.0,0.00020054,2]
[373168540,1752888707773,-480.0,0.00020054,2]
[373168541,1752888707782,-485.49,0.00020054,2]
[373168542,1752888707792,-877.71,0.00020054,2]
[373168543,1752888707801,-480.0,0.00020054,2]
[373168544,1752888707811,-480.0,0.00020054,2]
[373168545,1752888707820,-431.28861311,0.00020054,2]
[373168546,1752888707830,-480.0,0.00020054,2]
[373168547,1752888707840,-881.24,0.00020054,2]
[373168548,1752888707849,-574.92,0.00020054,2]
[373168549,1752888707860,-480.0,0.00020054,2]
[373168550,1752888707871,-480.0,0.00020054,2]
[373168551,1752888707881,-502.0,0.00020054,2]
[373168552,1752888707891,-224.45583237,0.00020054,2]
[373168553,1752888707901,-521.42,0.00020054,2]
[373168554,1752888707911,-481.46,0.00020054,2]
[373168555,1752888707922,-480.0,0.00020054,2]
[373168556,1752888707931,-578.28,0.00020054,2]
[373168557,1752888707941,-918.24,0.00020054,2]
[373168558,1752888707952,-1069.98,0.00020054,2]
[373168559,1752888707962,-480.0,0.00020054,2]
[373168560,1752888707973,-696.46,0.00020054,2]
[373168561,1752888707982,-480.0,0.00020054,2]
[373168562,1752888707992,-568.95,0.00020054,2]
[373168563,1752888708002,-920.75,0.00020054,2]
[373168564,1752888708012,-582.29,0.00020054,2]
[373168565,1752888708022,-716.53,0.00020054,2]
[373168566,1752888708031,-480.0,0.00020054,2]
[373168567,1752888708041,-567.12594322,0.00020054,2]
[373168568,1752888708051,-585.79,0.00020054,2]
[373168569,1752888708060,-495.19,0.00020054,2]
[373168570,1752888708070,-830.19,0.00020054,2]
[373168571,1752888708079,-333.84047341,0.00020054,2]
[373168572,1752888708089,-4174.88,0.00020054,2]
[373168573,1752888708099,-650.56,0.00020054,2]
[373168574,1752888708109,-835.95,0.00020054,2]
[373168575,1752888708119,-480.0,0.00020054,2]
[373168576,1752888708128,-933.22,0.00020054,2]
[373168577,1752888708138,-480.0,0.00020054,2]
[373168578,1752888708148,-480.0,0.00020054,2]
[373168579,1752888708159,-569.06,0.00020054,2]
[373168580,1752888708169,-602.69,0.00020054,2]
[373168581,1752888708179,-480.0,0.00020054,2]
[373168582,1752888708189,-480.0,0.00020054,2]
[373168583,1752888708199,-621.28,0.00020054,2]
[373168584,1752888708208,-480.0,0.00020054,2]
[373168585,1752888708218,-1447.89,0.00020054,2]
[373168586,1752888708228,-480.0,0.00020054,2]
[373168587,1752888708239,-480.0,0.00020054,2]
[373168588,1752888708249,-910.53,0.00020054,2]
[373168589,1752888708258,-480.0,0.00020054,2]
[373168590,1752888708269,-1081.58,0.00020054,2]
[373168591,1752888708279,-480.0,0.00020054,2]
[373168592,1752888708288,-588.15,0.00020054,2]
[373168593,1752888708298,-480.0,0.00020054,2]
[373168594,1752888708308,-480.0,0.00020054,2]
[373168595,1752888708318,-480.0,0.00020054,2]
[373168596,1752888708327,-480.0,0.00020054,2]
[373168597,1752888708337,-480.0,0.00020054,2]
[373168598,1752888708347,-480.0,0.00020054,2]
[373168599,1752888708357,-480.0,0.00020054,2]
[373168600,1752888708368,-3061.9,0.00020054,2]
[373168601,1752888708378,-480.0,0.00020054,2]
[373168602,1752888708388,-650.55,0.00020054,2]
[373168603,1752888708398,-480.0,0.00020054,2]
[373168604,1752888708408,-765.38,0.00020054,2]
[373168605,1752888708419,-590.15,0.00020054,2]
[373168606,1752888708430,-379.63,0.00020054,2]
[373168607,1752888708440,-730.13,0.00020054,2]
[373168608,1752888708450,-564.9,0.00020054,2]
[373168609,1752888708461,-779.26,0.00020054,2]
[373168610,1752888708471,-480.0,0.00020054,2]
[373168611,1752888708481,-1273.31,0.00020054,2]
[373168612,1752888708491,-480.0,0.00020054,2]
[373168613,1752888708501,-493.88,0.00020054,2]
[373168614,1752888708511,-244.34785114,0.00020054,2]
[373168615,1752888708521,-480.0,0.00020054,2]
[373168616,1752888708531,-856.25,0.00020054,2]
[373168617,1752888708541,-1090.52,0.00020054,2]
[373168618,1752888708551,-1533.88,0.00020054,2]
[373168619,1752888708562,-480.0,0.00020054,2]
[373168620,1752888708571,-497.14,0.00020054,2]
[373168621,1752888708581,-761.08,0.00020054,2]
[373168622,1752888708591,-590.77,0.00020054,2]
[373168623,1752888708602,-480.0,0.00020054,2]
[373168624,1752888708612,-480.0,0.00020054,2]
[373168625,1752888708622,-572.66,0.00020054,2]
[373168626,1752888708632,-480.0,0.00020054,2]
[373168627,1752888708642,-300.0,0.00020054,2]
[373168628,1752888708652,-1780.4,0.00020054,2]
[373168629,1752888708662,-982.44,0.00020054,2]
[373168630,1752888708672,-583.37,0.00020054,2]
[373168631,1752888708682,-932.52,0.00020054,2]
[373168632,1752888708691,-480.0,0.00020054,2]
[373168633,1752888708702,-566.63,0.00020054,2]
[373168634,1752888708711,-480.0,0.00020054,2]
[373168635,1752888708721,-568.61,0.00020054,2]
[373168636,1752888708732,-607.81,0.00020054,2]
[373168637,1752888708742,-576.95,0.00020054,2]
[373168638,1752888708752,-696.38,0.00020054,2]
[373168639,1752888708762,-1155.68,0.00020054,2]
[373168640,1752888708772,-496.58,0.00020054,2]
[373168641,1752888708783,-709.78,0.00020054,2]
[373168642,1752888708793,-480.0,0.00020054,2]
[373168643,1752888708803,-724.41,0.00020054,2]
[373168644,1752888708813,-480.0,0.00020054,2]
[373168645,1752888708823,-719.42,0.00020054,2]
[373168646,1752888708833,-480.0,0.00020054,2]
[373168647,1752888708843,-640.67,0.00020054,2]
[373168648,1752888708853,-487.25,0.00020054,2]
[373168649,1752888708864,-480.0,0.00020054,2]
[373168650,1752888708874,-480.0,0.00020054,2]
[373168651,1752888708885,-480.0,0.00020054,2]
[373168652,1752888708895,-495.49,0.00020054,2]
[373168653,1752888708905,-480.0,0.00020054,2]
[373168654,1752888708915,-1078.16,0.00020054,2]
[373168655,1752888708926,-480.0,0.00020054,2]
[373168656,1752888708936,-3131.25,0.00020054,2]
[373168657,1752888708946,-480.0,0.00020054,2]
[373168658,1752888708956,-480.0,0.00020054,2]
[373168659,1752888708966,-480.0,0.00020054,2]
[373168660,1752888708977,-706.8,0.00020054,2]
[373168661,1752888708987,-898.9,0.00020054,2]
[373168662,1752888708996,-553.3,0.00020054,2]
[373168663,1752888709006,-2995.02,0.00020054,2]
[373168664,1752888709017,-871.17,0.00020054,2]
[373168665,1752888709027,-3995.22,0.00020054,2]
[373168666,1752888709036,-480.0,0.00020054,2]
[373168667,1752888709046,-480.0,0.00020054,2]
[373168668,1752888709056,-1340.32,0.00020054,2]
[373168669,1752888709066,-1013.99,0.00020054,2]
[373168670,1752888709076,-1855.61,0.00020054,2]
[373168671,1752888709086,-612.82,0.00020054,2]
[373168672,1752888709096,-480.0,0.00020054,2]
[373168673,1752888709106,-5464.38,0.00020054,2]
[373168674,1752888709117,-823.03,0.00020054,2]
[373168675,1752888709127,-1917.13,0.00020054,2]
[373168676,1752888709136,-480.0,0.00020054,2]
[373168677,1752888709146,-1681.6,0.00020054,2]
[373168678,1752888709157,-528.33,0.00020054,2]
[373168679,1752888709169,-720.52,0.00020054,2]
[373168680,1752888709180,-1252.73,0.00020054,2]
[373168681,1752888709191,-13559.65,0.00020054,2]
[373168682,1752888709202,-968.31,0.00020054,2]
[373168683,1752888709212,-791.37,0.00020054,2]
[373168684,1752888709222,-875.72,0.00020054,2]
[373168685,1752888709233,-509.77,0.00020054,2]
[373168686,1752888709244,-480.0,0.00020054,2]
[373168687,1752888709253,-480.0,0.00020054,2]
[373168688,1752888709263,-535.75,0.00020054,2]
[373168689,1752888709273,-240.28999858,0.00020054,2]
[373168690,1752888709283,-802.98,0.00020054,2]
[373168691,1752888709294,-1032.63,0.00020054,2]
[373168692,1752888709305,-1005.17,0.00020054,2]
[373168693,1752888709314,-969.04,0.00020054,2]
[373168694,1752888709325,-1082.65,0.00020054,2]
[373168695,1752888709335,-480.0,0.00020054,2]
[373168696,1752888709345,-480.0,0.00020054,2]
[373168697,1752888709355,-480.0,0.00020054,2]
[373168698,1752888709367,-1629.45,0.00020054,2]
[373168699,1752888709379,-805.13,0.00020054,2]
[373168700,1752888709390,-1066.81,0.00020054,2]
[373168701,1752888709400,-4796.86,0.00020054,2]
[373168702,1752888709410,-1514.35,0.00020054,2]
[373168703,1752888709421,-480.0,0.00020054,2]
[373168704,1752888709431,-480.0,0.00020054,2]
[373168705,1752888709441,-1021.81,0.00020054,2]
[373168706,1752888709451,-480.0,0.00020054,2]
[373168707,1752888709462,-3566.89,0.00020054,2]
[373168708,1752888709471,-280.17774424,0.00020054,2]
[373168709,1752888709481,-1603.75,0.00020054,2]
[373168710,1752888709491,-480.0,0.00020054,2]
[373168711,1752888709501,-821.44,0.00020054,2]
[373168712,1752888709511,-821.18,0.00020054,2]
[373168713,1752888709523,-2490.92,0.00020054,2]
[373168714,1752888709534,-604.7,0.00020054,2]
[373168715,1752888709547,-1634.05,0.00020054,2]
[373168716,1752888709557,-3087.9,0.00020054,2]
[373168717,1752888709567,-1748.84,0.00020054,2]
[373168718,1752888709577,-371.16985528,0.00020054,2]
[373168719,1752888709588,-970.72,0.00020054,2]
[373168720,1752888709598,-532.91,0.00020054,2]
[373168721,1752888709608,-1915.86,0.00020054,2]
[373168722,1752888709620,-480.0,0.00020054,2]
[373168723,1752888709632,-603.46,0.00020054,2]
[373168724,1752888709644,-1057.88,0.00020054,2]
[373168725,1752888709654,-480.0,0.00020054,2]
[373168726,1752888709665,-480.0,0.00020054,2]
[373168727,1752888709675,-2279.02,0.00020054,2]
[373168728,1752888709685,-480.0,0.00020054,2]
[373168729,1752888709696,-2361.11,0.00020054,2]
[373168730,1752888709706,-480.0,0.00020054,2]
[373168731,1752888709717,-828.8,0.00020054,2]
[373168732,1752888709727,-480.0,0.00020054,2]
[373168733,1752888709738,-825.18,0.00020054,2]
[373168734,1752888709748,-1303.91,0.00020054,2]
[373168735,1752888709759,-1096.8,0.00020054,2]
[373168736,1752888709769,-566.27,0.00020054,2]
[373168737,1752888709779,-564.95,0.00020054,2]
[373168738,1752888709789,-494.97,0.00020054,2]
[373168739,1752888709799,-1813.24,0.00020054,2]
[373168740,1752888709809,-480.0,0.00020054,2]
[373168741,1752888709819,-1571.61,0.00020054,2]
[373168742,1752888709830,-480.0,0.00020054,2]
[373168743,1752888709840,-5046.27,0.00020054,2]
[373168744,1752888709850,-962.21,0.00020054,2]
[373168745,1752888709860,-868.4,0.00020054,2]
[373168746,1752888709870,-520.74,0.00020054,2]
[373168747,1752888709880,-2145.47,0.00020054,2]
[373168748,1752888709890,-480.0,0.00020054,2]
[373168749,1752888709901,-2324.63,0.00020054,2]
[373168750,1752888709911,-480.0,0.00020054,2]
[373168751,1752888709921,-680.56,0.00020054,2]
[373168752,1752888709931,-1859.22,0.00020054,2]
[373168753,1752888709941,-977.92,0.00020054,2]